Cogmind - Beta 17.1 @@@ ROGUE MODE // 2026.09.20 @ 15:14:57 Player: Caluan Result: Self-destructed Performance ------------- Evolutions (6) 3000 Regions Visited (21) 4200 Robots Destroyed (207) 1035 Value Destroyed (9748) 9748 Prototype IDs (6) 120 Alien Tech Used (0) 0 Bonus (4268) 4268 TOTAL SCORE: 22371 Bonus ------- High Alert Combat Kills 525 Follower Combat Kills 1087 Entered Garrisons 800 Used RIF Installer 2000 Friendly Fire -144 Cogmind --------- Core Integrity 849/1150 Matter 4/300 Energy 290/290 System Corruption 2% Temperature Cool (0) Movement Core (1800) Ox35 Location -4/Garrison Parts ------- > --- POWER (1) -------- Improved Deuterium Engine > --- PROPULSION (4) --- Advanced Medium Treads > --- UTILITY (10) ----- Huge Storage Unit Relay Coupler [Swarmer] (1) Relay Coupler [Grunt] (24) Relay Coupler [Duelist] (16) Relay Coupler [Hunter] (19) Relay Coupler [Behemoth] (1) > --- WEAPON (4) ------- Heavy Gauss Cannon Missile Launcher > --- INVENTORY (25) --- Neutrino Core Micro Antimatter Reactor Micro Antimatter Reactor High-capacity Battery (250) Matter Compressor (163) Authchip [R/Combat] Authchip [R/Combat] Relay Coupler [NC] (29) Relay Coupler [NC] (22) Relay Coupler [Duelist] (31) Relay Coupler [Specialist] (25) Relay Coupler [Specialist] (23) Tractor Beam Advanced Drone Bay (2/2) KE Penetrator Heavy Gauss Cannon Heavy Gauss Cannon Heavy Gauss Cannon Heavy Gauss Cannon Improved Plasma Cutter Powered Hammer Peak State ------------ > --- POWER ------------ Micro Antimatter Reactor > --- PROPULSION ------- Biometal Medium Treads Biometal Medium Treads Advanced Heavy Treads > --- UTILITY ---------- Huge Storage Unit System Shield Relay Coupler [Grunt] Relay Coupler [Sentry] Relay Coupler [Hunter] Relay Coupler [Behemoth] Improved Corruption Screen Advanced Drone Bay > --- WEAPON ----------- Heavy Linear Accelerator Improved Remote Datajack > --- INVENTORY -------- Improved Deuterium Engine Neutrino Core Micro Antimatter Reactor Improved Heavy Siege Treads Huge Storage Unit High-capacity Battery Matter Compressor Authchip [R/Combat] Authchip [R/Combat] Relay Coupler [NC] Relay Coupler [NC] Relay Coupler [Swarmer] Relay Coupler [Duelist] Relay Coupler [Sentry] Relay Coupler [Specialist] Relay Coupler [Specialist] Tractor Beam Missile Launcher Heavy Missile Launcher Improved Plasma Cutter Powered Hammer [Rating: 110] Favorites ----------- Power Improved Ion Engine Engine Improved Ion Engine Power Core Nuclear Core Reactor Micro Antimatter Reactor Propulsion Light Treads Treads Light Treads Leg Carbon-fiber Leg Wheel Wheel Utility Huge Storage Unit Device Dynamic Insulation System Storage Huge Storage Unit Processor Machine Analyzer Hackware Relay Coupler [NC] Protection Insulated Plating Weapon Heavy Assault Rifle Energy Gun EM Pulse Gun Ballistic Gun Heavy Assault Rifle Ballistic Cannon Heavy Linear Accelerator Launcher Heavy Missile Launcher Special Weapon Improved Remote Datajack Impact Weapon Powered Hammer Special Melee Weapon Improved Datajack Build | -11 -10 -9 -9 -9 -8 -8 -8 -8 -8 -7 -7 -7 -6 -6 -5 -5 -5 -5 -4 -4 -4 ------- Run | Yrd Mat Mat Min Exi Min Mat Gar Mat Gar Fac Was Fac Fac Gar Fac Upp Upp War Pro Fac Gar Slots Evolved 12 | . . 2 . . . 2 . . . 2 . . 2 . 2 . . . . 2 . Power . | . . . . . . . . . . . . . . . . . . . . . . Propulsion 2 | . . 1 . . . . . . . . . . . . 1 . . . . . . Utility 8 | . . 1 . . . 1 . . . 2 . . 2 . 1 . . . . 1 . Weapon 2 | . . . . . . 1 . . . . . . . . . . . . . 1 . Parts Attached 164 | 6 8 24 1 2 1 11 19 11 17 4 4 1 . 22 10 . 3 . 4 4 12 Power 15 | 1 . 1 . . . 1 4 1 2 1 1 . . 2 . . . . . . 1 Engine 8 | 1 . 1 . . . . 4 1 . . . . . . . . . . . . 1 Core 5 | . . . . . . 1 . . 2 1 . . . 1 . . . . . . . Reactor 2 | . . . . . . . . . . . 1 . . 1 . . . . . . . Propulsion 45 | 2 1 12 . . . 3 4 4 3 1 1 . . 9 1 . . . 1 3 . Treads 42 | 2 . 11 . . . 3 4 4 3 1 1 . . 8 1 . . . 1 3 . Leg 1 | . . . . . . . . . . . . . . 1 . . . . . . . Wheel 2 | . 1 1 . . . . . . . . . . . . . . . . . . . Hover . | . . . . . . . . . . . . . . . . . . . . . . Flight . | . . . . . . . . . . . . . . . . . . . . . . Utility 51 | 1 3 6 . 2 . 2 5 2 6 2 1 1 . 5 8 . 2 . . 1 4 Device 5 | . 1 . . . . . . . . . 1 1 . . 1 . . . . . 1 Storage 7 | 1 1 1 . 2 . 1 . . . . . . . . . . . . . 1 . Processor 3 | . . 1 . . . . . . . 1 . . . . 1 . . . . . . Hackware 31 | . . . . . . 1 5 2 6 1 . . . 5 6 . 2 . . . 3 Protection 5 | . 1 4 . . . . . . . . . . . . . . . . . . . Artifact . | . . . . . . . . . . . . . . . . . . . . . . Weapon 53 | 2 4 5 1 . 1 5 6 4 6 . 1 . . 6 1 . 1 . 3 . 7 Energy Gun 5 | 1 4 . . . . . . . . . . . . . . . . . . . . Energy Cannon . | . . . . . . . . . . . . . . . . . . . . . . Ballistic Gun 25 | 1 . 4 . . . 3 4 4 2 . . . . 4 . . 1 . 2 . . Ballistic Cannon 9 | . . . . . . . . . . . . . . 2 . . . . . . 7 Launcher 4 | . . 1 . . 1 . . . 1 . 1 . . . . . . . . . . Special Weapon 5 | . . . . . . . 1 . 2 . . . . . 1 . . . 1 . . Impact Weapon 3 | . . . 1 . . 1 1 . . . . . . . . . . . . . . Slashing Weapon . | . . . . . . . . . . . . . . . . . . . . . . Piercing Weapon . | . . . . . . . . . . . . . . . . . . . . . . Special Melee Weapon 2 | . . . . . . 1 . . 1 . . . . . . . . . . . . Unidentified Prototypes 2 | . . . . . . . . 2 . . . . . . . . . . . . . Parts Lost 59 | . 6 6 . . 1 1 6 2 2 1 . . . 18 . . . . 2 6 8 Power 7 | . 1 . . . 1 . 3 . . . . . . 2 . . . . . . . Propulsion 21 | . 1 2 . . . . . 1 2 1 . . . 8 . . . . 1 3 2 Utility 9 | . 1 1 . . . 1 1 . . . . . . 2 . . . . . 1 2 Weapon 22 | . 3 3 . . . . 2 1 . . . . . 6 . . . . 1 2 4 Highest Loss Streak 10 | . 3 3 . . 1 1 1 1 2 1 . . . 10 . . . . 2 4 5 To Critical Strikes 5 | . . . . . . . . . . . . . . 2 . . . . 1 1 1 Average Backups 21 | . 5 20 23 23 23 24 23 24 20 24 24 25 25 21 21 21 21 21 20 20 21 Power 1 | . 1 2 3 3 3 3 1 . . . 1 1 1 1 3 3 3 3 3 3 2 Propulsion 5 | . . 6 10 10 10 10 9 6 5 5 5 5 5 1 1 1 1 1 1 2 . Utility 9 | . 2 5 6 6 6 5 7 11 10 13 14 14 14 14 14 13 12 11 11 10 10 Weapon 3 | . . 4 4 4 4 4 4 4 3 3 2 3 3 2 2 3 4 4 3 2 6 Tool/Special . | . . . . . . . . . . . . . . . . . . . . . . Unused Backups 24 | . . 6 . . . 3 1 . 1 . . . . 1 . . . . . . 12 Power 2 | . . . . . . . . . . . . . . . . . . . . . 2 Propulsion 5 | . . 4 . . . 1 . . . . . . . . . . . . . . . Utility 12 | . . . . . . . 1 . 1 . . . . 1 . . . . . . 9 Weapon 5 | . . 2 . . . 2 . . . . . . . . . . . . . . 1 Tool/Special . | . . . . . . . . . . . . . . . . . . . . . . Average Slot Usage (%) 86 | . 85 95 100 88 92 88 89 88 96 92 85 83 73 65 83 76 80 88 83 69 68 Engine 4 | . 10 9 11 11 8 . 6 7 6 . . . . . . . . . . . 3 Core 1 | . . . . . . 8 . . 2 7 1 . . 1 . . . . . . . Reactor 1 | . . . . . . . . . . . 5 7 6 2 5 5 5 5 5 5 1 Treads 23 | . 17 30 33 33 33 26 27 26 26 23 16 15 13 11 16 17 17 17 12 11 13 Storage 8 | . 14 11 11 11 11 9 9 9 9 7 7 7 6 6 5 5 5 5 5 5 5 Processor 5 | . . 9 11 11 11 9 4 . . . 7 7 6 6 9 5 5 5 5 3 . Hackware 15 | . . . . . . 4 14 19 25 29 26 23 20 18 31 29 33 41 41 33 28 Protection 3 | . 7 10 11 10 11 3 . . . . . . . . . . . . . . . Energy Gun 1 | . 17 2 . . . . . . . . . . . . . . . . . . . Ballistic Gun 13 | . 9 19 18 . 12 25 24 25 21 19 . . . 6 . . 1 5 2 4 . Ballistic Cannon 1 | . . . . . . . . . . . . . . . 5 5 5 5 5 2 12 Special Weapon 1 | . . . . . . . . . 4 3 . . . . 4 5 3 . . . 1 Impact Weapon 1 | . . . 3 11 4 . 1 . . . . . . 3 . . . . . 1 . Peak Build Rating 110 | 6 9 25 25 25 26 29 32 32 33 39 49 49 49 83 110 99 105 104 104 104 97 Average Rating 39 | 3 6 18 25 23 24 25 25 26 29 36 46 48 49 42 99 99 101 104 97 84 81 On Entrance 48 | . 6 9 25 25 23 24 24 32 25 32 39 49 49 49 83 99 99 104 104 98 78 Avg Prop Armor Cover (%) 11 | . 14 6 . . . . . . . . . . . 8 . . . . . . 6 Naked Turns . | . . . . . . . . . . . . . . . . . . . . . . Heaviest Build 138 | 12 31 97 96 96 97 99 95 98 99 98 111 111 111 118 129 119 119 119 122 119 138 Greatest Support 145 | 40 40 63 60 60 60 60 60 60 60 60 90 90 90 105 140 140 140 140 140 145 128 Greatest Overweight (x) 27 | . 2 4 1 1 1 2 1 2 1 1 1 1 1 27 . . . . 1 1 1 Average Overweight (x) . | . . . 1 1 1 1 1 1 1 1 1 1 1 1 . . . . . . . Largest Inventory Capacity 25 | 8 15 25 25 25 25 25 25 25 25 25 25 25 25 25 25 25 25 25 25 25 25 Average Capacity 23 | 6 11 22 25 25 25 25 25 25 25 25 25 25 25 25 25 25 25 25 25 25 25 Most Carried 25 | 3 14 25 23 25 24 25 25 25 25 25 25 25 25 25 24 23 25 23 25 25 25 Average Carried 21 | . 6 20 23 23 23 24 23 24 20 24 24 25 25 22 22 23 23 23 22 22 22 Final Capacity 25 | 8 15 25 25 25 25 25 25 25 25 25 25 25 25 25 25 25 25 25 25 25 25 Final Carried 25 | 2 14 23 23 24 24 25 25 25 24 25 25 25 25 25 23 23 23 23 24 17 22 Class Distribution -------------------- 20% | Bothacker-Gunner 18% | Mutant 17% | Scavenger-Mutant 16% | Bothacker-Mutant 15% | Bothacker-Tank 6% | Scavenger-Skirmisher Dominant Class ---------------- Mutant | -10/Materials Scavenger-Mutant | -9/Materials Scavenger-Mutant | -9/Mines Mutant | -9/Exiles Mutant | -8/Mines Scavenger-Skirmisher | -8/Materials Scavenger-Skirmisher | -8/Garrison Bothacker-Gunner | -8/Materials Bothacker-Gunner | -8/Garrison Bothacker-Gunner | -7/Factory Bothacker-Mutant | -7/Waste Bothacker-Mutant | -7/Factory Bothacker-Mutant | -6/Factory Bothacker-Mutant | -6/Garrison Bothacker-Tank | -5/Factory Bothacker-Tank | -5/Upper Caves Bothacker-Tank | -5/Upper Caves Bothacker-Tank | -5/Warlord Bothacker-Tank | -4/Proximity Caves Bothacker-Mutant | -4/Factory Botlord-Tank | -4/Garrison Resources | -11 -10 -9 -9 -9 -8 -8 -8 -8 -8 -7 -7 -7 -6 -6 -5 -5 -5 -5 -4 -4 -4 ----------- Run | Yrd Mat Mat Min Exi Min Mat Gar Mat Gar Fac Was Fac Fac Gar Fac Upp Upp War Pro Fac Gar Matter Collected 7982 | 193 211 880 17 . 146 638 870 620 1006 223 668 . . 1160 301 31 167 . 280 3 568 Remotely 9 | . . . . . . . . . . . . . . . . . . . . . 9 Salvage Created 9095 | . 461 1693 . . 187 699 903 984 741 338 1126 . . 1060 130 . 100 . 566 46 61 Parts 418 | . 28 109 . . 16 43 46 58 38 13 6 . . 39 3 . . . 16 2 1 Haulers Intercepted 8 | . 1 4 . . . 2 . 1 . . . . . . . . . . . . . Recyclers Shooed 6 | . 1 3 . . . . . 2 . . . . . . . . . . . . . Parts Field Recycled . | . . . . . . . . . . . . . . . . . . . . . . Retrieved Matter . | . . . . . . . . . . . . . . . . . . . . . . Parts Self-Destructed 30 | . . . . . . . . . . . . . . . . 3 14 . 13 . . Prevented 2 | . . . . . . . . . . . . . . . . 2 . . . . . Parts Restored . | . . . . . . . . . . . . . . . . . . . . . . Kills | -11 -10 -9 -9 -9 -8 -8 -8 -8 -8 -7 -7 -7 -6 -6 -5 -5 -5 -5 -4 -4 -4 ------- Run | Yrd Mat Mat Min Exi Min Mat Gar Mat Gar Fac Was Fac Fac Gar Fac Upp Upp War Pro Fac Gar Combat Hostiles Destroyed 176 | . 10 34 . . 9 14 24 16 17 7 5 . . 25 2 . 2 . 7 1 3 Melee 4 | . . . . . . . . . . . . . . 3 . . . . . 1 . Guns 114 | . 9 31 . . 1 12 22 16 13 7 . . . 2 . . . . 1 . . Cannons 15 | . . . . . . . . . . . . . . 4 2 . 2 . 4 . 3 AOE 39 | . 1 3 . . 8 2 2 . 4 . 5 . . 12 . . . . 2 . . Classes Destroyed 18 | . 6 5 . . 2 . 3 . . . 1 . . 1 . . . . . . . Worker 5 | . 1 . . . 2 1 . . . . . . . . 1 . . . . . . Builder 1 | . . 1 . . . . . . . . . . . . . . . . . . . Tunneler 1 | . . . . . 1 . . . . . . . . . . . . . . . . Hauler 8 | . 1 4 . . . 2 . 1 . . . . . . . . . . . . . Recycler 3 | . . 1 . . . . . 2 . . . . . . . . . . . . . Operator 3 | . 1 1 . . . . . . . . . . . . 1 . . . . . . Watcher 7 | . . 1 . . . 2 1 1 . . . . . 1 1 . . . . . . Swarmer 40 | . 2 8 . . 8 6 8 3 . . . . . 4 . . . . . . 1 Grunt 73 | . 6 15 . . . 2 7 8 12 3 . . . 17 . . . . 3 . . Brawler 3 | . . 1 . . . 1 . . . . . . . . . . 1 . . . . Duelist 2 | . . . . . . . 1 1 . . . . . . . . . . . . . Sentry 25 | . . 10 . . . 5 . 5 1 . . . . . 1 . 1 . . . 2 Specialist 2 | . . . . . . . 2 . . . . . . . . . . . . . . Hunter 11 | . . . . . 1 . 2 . 1 2 . . . 3 . . . . 2 . . Programmer 13 | . . . . . . . 4 . 3 2 . . . . 1 . . . 2 1 . Behemoth 1 | . . . . . . . . . . . . . . 1 . . . . . . . Compactor 5 | . . . . . . . . . . . 5 . . . . . . . . . . Subdweller 2 | . 2 . . . . . . . . . . . . . . . . . . . . Thug 1 | . . . . . . . . . . . 1 . . . . . . . . . . Savage 1 | . . . . . . . 1 . . . . . . . . . . . . . . Best Kill Streak 14 | . 3 6 . . 5 4 5 8 6 3 2 . . 14 2 . 1 . 3 1 3 Combat Bots Only 13 | . 2 6 . . 4 4 5 5 6 3 2 . . 13 1 . 1 . 3 1 3 Max Kills in Single Turn 5 | . 2 2 . . 5 2 3 2 2 1 1 . . 5 1 . 1 . 2 1 1 Gunslinging 2 | . . . . . . . 2 . 1 . . . . . . . . . . . . Exploded 5 | . 1 2 . . 4 2 1 . 2 . 1 . . 5 . . . . 2 . . Melee 1 | . . . . . . . . . . . . . . 1 . . . . . 1 . Uniques/NPCs Destroyed . | . . . . . . . . . . . . . . . . . . . . . . Combat | -11 -10 -9 -9 -9 -8 -8 -8 -8 -8 -7 -7 -7 -6 -6 -5 -5 -5 -5 -4 -4 -4 -------- Run | Yrd Mat Mat Min Exi Min Mat Gar Mat Gar Fac Was Fac Fac Gar Fac Upp Upp War Pro Fac Gar Hostile Shots Fired 1192 | . 65 155 . . 46 57 141 58 89 47 . . . 242 16 . 14 . 64 56 142 Missed 320 | . 21 43 . . 18 16 44 14 21 16 . . . 43 4 . 3 . 21 13 43 Hits 872 | . 44 112 . . 28 41 97 44 68 31 . . . 199 12 . 11 . 43 43 99 Melee 4 | . . 2 . . . . . . . . . . . . . . . . . . 2 Projectile 868 | . 44 110 . . 28 41 97 44 68 31 . . . 199 12 . 11 . 43 43 97 AOE 1 | . . . . . . . . . . . . . . . . . . . . 1 . Critical Strikes 37 | . 2 3 . . . 1 3 2 . 1 . . . 12 1 . . . 5 3 4 Part Disruptions 1 | . . . . . . . 1 . . . . . . . . . . . . . . Damage Taken 14799 | . 818 1443 . . 284 524 1534 621 1001 458 174 . . 3812 333 . 278 47 813 758 1901 Core 2145 | . 121 143 . . 51 44 268 52 99 45 48 . . 732 82 . 24 47 88 95 206 Absorbed by Shields . | . . . . . . . . . . . . . . . . . . . . . . Reduced by Siege Mode 455 | . . . . . . . . . . . . . . 200 . . 7 . 16 18 214 Ignored by Resistances 77 | . . 77 . . . . . . . . . . . . . . . . . . . Regen/Repaired (Parts) 488 | . . . . . . . . . . . . . . . 458 . 30 . . . . Core Remaining (%) 55 | 100 51 . . . 51 . . . 15 . . 86 . 13 . . . . 75 . . Volleys Fired 569 | . 51 118 . . 14 38 62 38 56 20 11 . . 59 17 2 12 . 32 8 31 Largest 4 | . 2 2 . . 2 3 3 3 3 3 2 . . 3 1 1 2 . 2 1 4 Hottest 204 | . 80 80 . . 46 69 76 79 84 84 75 . . 84 70 7 98 . 98 28 204 Shots Fired 1132 | . 98 230 . . 20 109 162 108 104 54 21 . . 84 17 2 14 . 41 8 60 Gun 913 | . 98 228 . . 12 108 153 106 83 51 . . . 56 . . 2 . 11 5 . Cannon 88 | . . . . . . . . . . . . . . 16 4 . 9 . 14 . 45 Launcher 56 | . . 2 . . 8 1 3 . 4 . 21 . . 11 . . . . 2 . 4 Special 75 | . . . . . . . 6 2 17 3 . . . 1 13 2 3 . 14 3 11 Kinetic 897 | . 40 182 . . 12 108 153 106 83 51 . . . 72 4 . 11 . 25 5 45 Thermal 62 | . 23 25 . . . . . . . . . . . . . . . . 14 . . Explosive 46 | . . . . . 1 . 3 . 4 . 21 . . 11 . . . . 2 . 4 Electromagnetic 66 | . 35 23 . . 7 1 . . . . . . . . . . . . . . . Robot Hit Streak 30 | . 15 30 . . 13 24 15 15 17 12 6 . . 18 22 1 12 . 18 5 15 Robot Miss Streak 5 | . 3 3 . . 2 3 4 4 3 3 1 . . 4 4 1 1 . 1 1 5 Penetration Max 1 | . . . . . . . 1 1 . 1 . . . 1 . . 1 . . . . Secondary Targets 18 | . . 2 . . . 2 8 1 4 1 . . . . . . . . . . . Max Gunslinging Chain 2 | . . 1 . . . 1 2 1 1 1 . . . . . . . . . . . Shots Hit Robots 841 | . 67 172 . . 13 76 118 73 75 38 13 . . 84 15 1 13 . 35 10 38 Core Hits 361 | . 27 67 1 . 11 30 50 34 28 15 11 . . 43 2 . 3 . 21 1 17 Critical Kills 6 | . . . . . . 1 . 3 . . . . . 2 . . . . . . . Critical Parts Destroyed 16 | . . 1 . . 2 . 1 1 2 . . . . 6 1 . . . . 2 . Critical Strikes 31 | . . 1 . . 2 1 1 4 2 . . . . 11 1 . 1 . . 2 5 Destroy 17 | . . 1 . . 1 1 1 4 2 . . . . 7 . . . . . . . Blast 7 | . . . . . . . . . . . . . . 1 . . 1 . . . 5 Smash 7 | . . . . . 1 . . . . . . . . 3 1 . . . . 2 . Melee Attacks 83 | . . . 4 . 3 2 17 3 5 . . . . 38 2 . . . . 9 . Impact 62 | . . . 4 . 3 . 11 . . . . . . 33 2 . . . . 9 . Slashing . | . . . . . . . . . . . . . . . . . . . . . . Piercing . | . . . . . . . . . . . . . . . . . . . . . . Sneak Attacks 16 | . . . . . 3 2 4 . 5 . . . . . 2 . . . . . . Combat Hostiles . | . . . . . . . . . . . . . . . . . . . . . . Follow-up Attacks . | . . . . . . . . . . . . . . . . . . . . . . Damage Inflicted 21509 | . 1016 2742 8 . 719 1179 1920 1372 1375 756 2360 . . 3117 647 . 676 . 1501 261 1860 Guns 10117 | . 730 2472 . . 100 1081 1585 1367 1072 756 . . . 638 . . 51 . 207 58 . Cannons 3289 | . . . . . . . . . . . . . . 394 342 . 625 . 817 . 1111 Explosions 6175 | . 270 192 . . 406 98 335 . 303 . 2360 . . 1160 . . . . 302 . 749 Melee 1563 | . . . . . 213 . . . . . . . . 925 222 . . . . 203 . Ramming 190 | . 16 78 8 . . . . 5 . . . . . . 83 . . . . . . Kinetic 12481 | . 187 2090 . . 100 1081 1585 1367 1072 756 . . . 1032 342 . 676 . 1024 58 1111 Thermal 991 | . 421 314 . . 41 40 . . . . . . . . . . . . 175 . . Explosive 5473 | . . . . . 264 . 335 . 303 . 2360 . . 1160 . . . . 302 . 749 Electromagnetic 811 | . 392 260 . . 101 58 . . . . . . . . . . . . . . . Impact 1563 | . . . . . 213 . . . . . . . . 925 222 . . . . 203 . Slashing . | . . . . . . . . . . . . . . . . . . . . . . Piercing . | . . . . . . . . . . . . . . . . . . . . . . Highest Corruption 37 | . 2 5 5 5 5 . 3 3 4 3 37 37 . . . . . . . 2 2 Average Corruption 5 | . 2 4 5 5 5 . 2 3 3 2 23 34 . . . . . . . 1 2 Corruption Purged 5 | . . . . . . . . . . . . 5 . . . . . . . . . Corruption Blocked 5 | . . . . . . . . . . . . . . . . . . 1 . 4 . Effects 226 | . 8 62 12 15 16 . 3 17 41 6 20 19 . . . . . . . 1 6 Message Errors 62 | . 2 14 7 3 5 . . 6 14 1 5 5 . . . . . . . . . Matter Fused 59 | . 2 14 1 8 7 . 2 3 9 2 7 3 . . . . . . . . 1 Heat Flow Errors 25 | . . 7 1 2 2 . 1 . 3 1 3 4 . . . . . . . . 1 Energy Discharges 31 | . 1 11 . 1 1 . . 3 9 . . 4 . . . . . . . . 1 Parts Rejected 3 | . 1 . . . . . . 1 . 1 . . . . . . . . . . . Parts Fused 3 | . 1 1 . . . . . 1 . . . . . . . . . . . . . Data Loss (minor) 22 | . . 7 2 1 1 . . 2 4 1 1 . . . . . . . . 1 2 Data Loss (major) 12 | . . 4 1 . . . . 1 1 . 1 3 . . . . . . . . 1 Misfires 2 | . . 2 . . . . . . . . . . . . . . . . . . . Alerts 5 | . 1 1 . . . . . . 1 . 2 . . . . . . . . . . Weapon Failures 2 | . . 1 . . . . . . . . 1 . . . . . . . . . . Overload Shots . | . . . . . . . . . . . . . . . . . . . . . . Overflow Damage 1018 | . 60 8 . . 180 . . . . . . . . 169 297 . 58 . 131 68 47 Projectiles 299 | . . . . . . . . . . . . . . 6 68 . 58 . 131 . 36 Explosions 130 | . 60 . . . 47 . . . . . . . . 12 . . . . . . 11 Melee 589 | . . 8 . . 133 . . . . . . . . 151 229 . . . . 68 . Knockbacks 20 | . . . . . 3 . . . . . . . . 9 2 . . . 4 1 1 Impact 8 | . . . . . 3 . . . . . . . . 3 1 . . . . 1 . Kinetic 11 | . . . . . . . . . . . . . . 5 1 . . . 4 . 1 Secondary 1 | . . . . . . . . . . . . . . 1 . . . . . . . Self-Inflicted Damage 419 | . 128 107 . . . . . . . . 71 . . 113 . . . . . . . Shots 11 | . 2 5 . . . . . . . . 2 . . 2 . . . . . . . Rammed 19 | . 6 8 1 . . . . 2 . . . . . . 2 . . . . . . Targets Rammed 20 | . 6 8 1 . . . . 2 . . . . . . 3 . . . . . . Kicked . | . . . . . . . . . . . . . . . . . . . . . . Crushed 1 | . . . . . . . . . . . . . . . 1 . . . . . . Highest Temperature 439 | . 124 283 123 248 261 141 238 62 270 162 236 246 . 57 17 . 28 . 16 . 439 Average Temperature 57 | . 40 63 63 122 137 36 40 24 59 18 89 99 . 22 9 . 10 . 4 . 127 Received Heat Transfer 3533 | . 213 612 . . . 162 243 252 396 81 . . . 978 36 . 60 . 48 21 431 Effects 5 | . . 1 . . . . . . . . . 3 . . . . . . . . 1 Energy Bleed 2 | . . 1 . . . . . . . . . 1 . . . . . . . . . Interference 2 | . . . . . . . . . . . . 2 . . . . . . . . . Short Circuit 1 | . . . . . . . . . . . . . . . . . . . . . 1 Siege Activations 11 | . . . . . . . . . . . . . . 2 . . 2 . 3 2 2 Total Turns 220 | . . . . . . . . . . . . . . 54 . . 11 . 33 76 46 Longest Duration 69 | . . . . . . . . . . . . . . 41 . . 9 . 16 69 24 Martial Activations . | . . . . . . . . . . . . . . . . . . . . . . Shielding Activations . | . . . . . . . . . . . . . . . . . . . . . . Robots Disrupted . | . . . . . . . . . . . . . . . . . . . . . . Combat Hostiles . | . . . . . . . . . . . . . . . . . . . . . . Robots Corrupted 7 | . . . . . 2 . . . . . . . . 4 1 . . . . . . Combat Hostiles 4 | . . . . . . . . . . . . . . 4 . . . . . . . Parts Fried 9 | . 2 . . . 2 . . . . . . . . 5 . . . . . . . Impact Corruptions 22 | . . 1 . . 5 . . . . . . . . 6 8 . . . . 2 . Robots Melted . | . . . . . . . . . . . . . . . . . . . . . . Combat Hostiles . | . . . . . . . . . . . . . . . . . . . . . . Parts Melted 2 | . 1 1 . . . . . . . . . . . . . . . . . . . Heat Transferred 1707 | . 550 600 . . 100 50 . . . . . . . . . . . . 407 . . Parts Sabotaged 8 | . . . . . . . . . . . . . . . . . . . . . 8 Parts Stolen . | . . . . . . . . . . . . . . . . . . . . . . Parts Stripped . | . . . . . . . . . . . . . . . . . . . . . . Power Chain Reactions 7 | . 2 3 . . 1 1 . . . . . . . . . . . . . . . Alert | -11 -10 -9 -9 -9 -8 -8 -8 -8 -8 -7 -7 -7 -6 -6 -5 -5 -5 -5 -4 -4 -4 ------- Run | Yrd Mat Mat Min Exi Min Mat Gar Mat Gar Fac Was Fac Fac Gar Fac Upp Upp War Pro Fac Gar Maximum Alert Level 4 | . . 1 . . . . 3 2 4 2 . . . 2 1 . . . . . . Low Security (%) 62 | 100 100 84 100 . 100 100 31 . . . 100 100 100 55 78 . . . . 100 100 Level 1 13 | . . 15 . . . . 21 77 10 33 . . . 9 21 . . . . . . Level 2 17 | . . . . . . . 36 22 46 66 . . . 35 . . . . . . . Level 3 5 | . . . . . . . 10 . 34 . . . . . . . . . . . . Level 4 . | . . . . . . . . . 8 . . . . . . . . . . . . Level 5 . | . . . . . . . . . . . . . . . . . . . . . . High Security . | . . . . . . . . . . . . . . . . . . . . . . Max Security . | . . . . . . . . . . . . . . . . . . . . . . Peak Influence 1139 | . 112 360 135 . 131 170 755 509 1139 597 129 . . 594 311 . . . . 15 150 Initial 597 | . . . 135 . . 22 3 367 315 597 93 . . . 311 . . . . . . Average 225 | . 18 103 33 . 43 56 371 348 727 438 78 . . 272 86 . . . . 1 51 Influence Increases 6615 | . 296 953 . . 245 476 932 520 1044 267 120 . . 854 206 . 252 . 133 43 274 Destroy 0b10 Robot/C 3745 | . 160 680 . . 180 280 540 360 460 160 40 . . 390 90 . 165 . 105 15 120 Destroy 0b10 Robot/NC 153 | . 15 40 . . 15 25 5 25 . . . . . 8 16 . . . 4 . . Destroy Leader 654 | . 42 190 . . 30 88 20 106 10 60 . . . 24 36 . 8 . 24 . 16 Allied During Kill 256 | . . . . . . . 49 12 27 2 4 . . 20 41 . 79 . . . 22 Successful Hack 120 | . 12 26 . . . 16 30 . . 14 . . . 11 11 . . . . . . Disable Machine 144 | . 30 . . . . 45 . 15 . 30 . . . 12 . . . . . . 12 Anti-Garrison Action 915 | . . . . . . . 200 . 450 . . . . 227 . . . . . . 38 Destroy Structure 379 | . 22 17 . . 20 7 88 2 22 1 76 . . 90 . . . . . 4 30 Partial Spotted 12 | . . . . . . . . . . . . . . . 12 . . . . . . Lose Combat Pursuer 237 | . 15 . . . . 15 . . 75 . . . . 72 . . . . . 24 36 Influence Decreases 6521 | . 296 605 348 . 186 529 183 790 390 1140 386 . . 260 782 18 204 48 133 43 180 Entered New Map 1865 | . . . 213 . . 37 3 388 170 542 173 . . . 283 8 . 48 . . . Time Decay 3300 | . 266 545 135 . 176 482 . 342 . 428 213 . . . 399 10 158 . 113 33 . Lost Part 510 | . 30 60 . . 10 10 60 20 20 10 . . . 180 . . . . 20 10 80 Lost Ally 696 | . . . . . . . 120 40 200 10 . . . 80 100 . 46 . . . 100 Purge Threat 150 | . . . . . . . . . . 150 . . . . . . . . . . . Squads Dispatched 17 | . 1 3 . . . . . 2 . 7 . . . . 3 . . . . 1 . Investigation 4 | . . 1 . . . . . . . 2 . . . . 1 . . . . . . Extermination 5 | . . . . . . . . . . 3 . . . . 1 . . . . 1 . Reinforcement 7 | . 1 2 . . . . . 1 . 2 . . . . 1 . . . . . . Assault . | . . . . . . . . . . . . . . . . . . . . . . Garrison 1 | . . . . . . . . 1 . . . . . . . . . . . . . Intercept . | . . . . . . . . . . . . . . . . . . . . . . Searches Triggered . | . . . . . . . . . . . . . . . . . . . . . . Construction Impeded . | . . . . . . . . . . . . . . . . . . . . . . Haulers Reinforced . | . . . . . . . . . . . . . . . . . . . . . . Active Scanning Responses . | . . . . . . . . . . . . . . . . . . . . . . Cargo Convoy Interrupts . | . . . . . . . . . . . . . . . . . . . . . . Stealth | -11 -10 -9 -9 -9 -8 -8 -8 -8 -8 -7 -7 -7 -6 -6 -5 -5 -5 -5 -4 -4 -4 --------- Run | Yrd Mat Mat Min Exi Min Mat Gar Mat Gar Fac Was Fac Fac Gar Fac Upp Upp War Pro Fac Gar Distress Signals 21 | . 2 4 . . . . 1 7 . . . . . 5 2 . . . . . . Communications Jammed . | . . . . . . . . . . . . . . . . . . . . . . Distress Signals . | . . . . . . . . . . . . . . . . . . . . . . Times Spotted 347 | . 26 57 . . 10 20 33 31 36 13 5 1 . 40 19 1 14 . 7 6 28 Peak Tracking Total 9 | . 4 5 . . 5 5 4 7 8 5 2 1 . 8 4 1 9 . 3 3 6 Tactical Retreats 14 | . 3 . . . . 1 . . 1 . . . . 4 . . . . . 2 3 Traps | -11 -10 -9 -9 -9 -8 -8 -8 -8 -8 -7 -7 -7 -6 -6 -5 -5 -5 -5 -4 -4 -4 ------- Run | Yrd Mat Mat Min Exi Min Mat Gar Mat Gar Fac Was Fac Fac Gar Fac Upp Upp War Pro Fac Gar Traps Triggered 24 | . 1 2 . . . 2 8 3 5 1 . . . 1 1 . . . . . . Indirectly . | . . . . . . . . . . . . . . . . . . . . . . Trap Hack Attempts . | . . . . . . . . . . . . . . . . . . . . . . Triggered . | . . . . . . . . . . . . . . . . . . . . . . Disarmed . | . . . . . . . . . . . . . . . . . . . . . . Reprogrammed . | . . . . . . . . . . . . . . . . . . . . . . Reused . | . . . . . . . . . . . . . . . . . . . . . . Traps Extracted . | . . . . . . . . . . . . . . . . . . . . . . Installed . | . . . . . . . . . . . . . . . . . . . . . . Triggered . | . . . . . . . . . . . . . . . . . . . . . . Machines | -11 -10 -9 -9 -9 -8 -8 -8 -8 -8 -7 -7 -7 -6 -6 -5 -5 -5 -5 -4 -4 -4 ---------- Run | Yrd Mat Mat Min Exi Min Mat Gar Mat Gar Fac Was Fac Fac Gar Fac Upp Upp War Pro Fac Gar Machines Disabled 23 | . 3 . . . . 3 2 1 4 2 . . . 6 . . . . . . 2 Max in Single Turn 2 | . 2 . . . . 1 1 1 1 1 . . . 2 . . . . . . 1 Garrison Relay 10 | . . . . . . . 2 . 4 . . . . 3 . . . . . . 1 Phase Generator 1 | . . . . . . . . . . . . . . 1 . . . . . . . Machines Repaired . | . . . . . . . . . . . . . . . . . . . . . . Machines Dismantled . | . . . . . . . . . . . . . . . . . . . . . . Machines Sabotaged . | . . . . . . . . . . . . . . . . . . . . . . Overloaded Fab Kills . | . . . . . . . . . . . . . . . . . . . . . . Hacking | -11 -10 -9 -9 -9 -8 -8 -8 -8 -8 -7 -7 -7 -6 -6 -5 -5 -5 -5 -4 -4 -4 --------- Run | Yrd Mat Mat Min Exi Min Mat Gar Mat Gar Fac Was Fac Fac Gar Fac Upp Upp War Pro Fac Gar Machines Accessed 43 | . 4 9 . . . 8 4 1 5 5 . . 1 1 4 . . . . 1 . Terminals 30 | . 4 7 . . . 5 4 . 5 3 . . . 1 1 . . . . . . Fabricators 4 | . . . . . . . . . . 2 . . . . 2 . . . . . . Repair Stations 1 | . . . . . . . . . . . . . . . 1 . . . . . . Recycling Units . | . . . . . . . . . . . . . . . . . . . . . . Scanalyzers 4 | . . 2 . . . 2 . . . . . . . . . . . . . . . Garrison Access 4 | . . . . . . 1 . 1 . . . . 1 . . . . . . 1 . Total Hacks 81 | . 8 18 . . . 22 5 1 9 8 . . 1 1 7 . . . . 1 . Successful 53 | . 5 12 . . . 14 3 1 1 7 . . 1 1 7 . . . . 1 . Failed 27 | . 3 5 . . . 8 2 . 8 1 . . . . . . . . . . . Catastrophic 5 | . 1 . . . . 1 . . 3 . . . . . . . . . . . . Database Lockouts 1 | . . 1 . . . . . . . . . . . . . . . . . . . Manual 34 | . 6 11 . . . 12 . 1 . 3 . . . . 1 . . . . . . Terminals 58 | . 8 14 . . . 17 5 . 9 3 . . . 1 1 . . . . . . Fabricators 9 | . . . . . . . . . . 5 . . . . 4 . . . . . . Repair Stations 2 | . . . . . . . . . . . . . . . 2 . . . . . . Recycling Units . | . . . . . . . . . . . . . . . . . . . . . . Scanalyzers 7 | . . 4 . . . 3 . . . . . . . . . . . . . . . Garrison Access 5 | . . . . . . 2 . 1 . . . . 1 . . . . . . 1 . Terminal Hacks 15 | . 2 3 . . . 4 3 . 1 1 . . . 1 . . . . . . . Part Schematic 1 | . . . . . . 1 . . . . . . . . . . . . . . . Robot Schematic 2 | . 1 1 . . . . . . . . . . . . . . . . . . . Robot Analysis 2 | . 1 . . . . 1 . . . . . . . . . . . . . . . Prototype ID Bank 2 | . . 1 . . . 1 . . . . . . . . . . . . . . . Open Door 2 | . . . . . . . 1 . 1 . . . . . . . . . . . . Emergency Access Points 1 | . . . . . . . 1 . . . . . . . . . . . . . . Unreport Threat 1 | . . . . . . . . . . 1 . . . . . . . . . . . Registered Components 1 | . . 1 . . . . . . . . . . . . . . . . . . . Zone Layout 1 | . . . . . . 1 . . . . . . . . . . . . . . . Garrison Registry 1 | . . . . . . . 1 . . . . . . . . . . . . . . Patrol Navigation 1 | . . . . . . . . . . . . . . 1 . . . . . . . Fabricator Hacks 8 | . . . . . . . . . . 4 . . . . 4 . . . . . . Load Schematic 5 | . . . . . . . . . . 3 . . . . 2 . . . . . . Build 3 | . . . . . . . . . . 1 . . . . 2 . . . . . . Repair Station Hacks 2 | . . . . . . . . . . . . . . . 2 . . . . . . Scan Component 1 | . . . . . . . . . . . . . . . 1 . . . . . . Repair 1 | . . . . . . . . . . . . . . . 1 . . . . . . Recycling Unit Hacks . | . . . . . . . . . . . . . . . . . . . . . . Scanalyzer 6 | . . 3 . . . 3 . . . . . . . . . . . . . . . Insert Component 1 | . . 1 . . . . . . . . . . . . . . . . . . . Analyze 1 | . . 1 . . . . . . . . . . . . . . . . . . . Retrieve Study 4 | . . 1 . . . 3 . . . . . . . . . . . . . . . Garrison Access Hacks 4 | . . . . . . 1 . 1 . . . . 1 . . . . . . 1 . Unlock Access 4 | . . . . . . 1 . 1 . . . . 1 . . . . . . 1 . Unauthorized Hacks 18 | . 3 6 . . . 6 . . . 2 . . . . 1 . . . . . . Terminals 17 | . 3 6 . . . 6 . . . 1 . . . . 1 . . . . . . Track 1 | . . . . . . 1 . . . . . . . . . . . . . . . Assimilate 2 | . 2 . . . . . . . . . . . . . . . . . . . . Botnet 14 | . 1 6 . . . 5 . . . 1 . . . . 1 . . . . . . Fabricators 1 | . . . . . . . . . . 1 . . . . . . . . . . . Recompile 1 | . . . . . . . . . . 1 . . . . . . . . . . . Repair Stations . | . . . . . . . . . . . . . . . . . . . . . . Recycling Units . | . . . . . . . . . . . . . . . . . . . . . . Scanalyzers . | . . . . . . . . . . . . . . . . . . . . . . Garrison Access . | . . . . . . . . . . . . . . . . . . . . . . Data Cores Recovered . | . . . . . . . . . . . . . . . . . . . . . . Used . | . . . . . . . . . . . . . . . . . . . . . . Hacking Detections 28 | . 2 4 . . . 6 4 1 4 4 . . 1 . 1 . . . . 1 . Full Trace Events 4 | . . . . . . 1 . . 1 1 . . . . 1 . . . . . . Feedback Events . | . . . . . . . . . . . . . . . . . . . . . . Feedback Blocked . | . . . . . . . . . . . . . . . . . . . . . . Robot Schematics Acquired 2 | . 1 1 . . . . . . . . . . . . . . . . . . . Robots Built 5 | . . . . . . . . . . 1 . . . . 4 . . . . . . Authchips 1 | . . . . . . . . . . . . . . . 1 . . . . . . Time 202 | . . . . . . . . . . 81 . . . . 121 . . . . . . Total Robot Build Rating 5 | . . . . . . . . . . 1 . . . . 4 . . . . . . Part Schematics Acquired 2 | . . 1 . . . 1 . . . . . . . . . . . . . . . Parts Built . | . . . . . . . . . . . . . . . . . . . . . . Authchips . | . . . . . . . . . . . . . . . . . . . . . . Time . | . . . . . . . . . . . . . . . . . . . . . . Total Part Build Rating . | . . . . . . . . . . . . . . . . . . . . . . Part Studies Acquired 4 | . . 1 . . . 3 . . . . . . . . . . . . . . . Parts Repaired 1 | . . . . . . . . . . . . . . . 1 . . . . . . Time 68 | . . . . . . . . . . . . . . . 68 . . . . . . Parts Recycled . | . . . . . . . . . . . . . . . . . . . . . . Recycled Matter . | . . . . . . . . . . . . . . . . . . . . . . Retrieved Matter . | . . . . . . . . . . . . . . . . . . . . . . Retrieved Components . | . . . . . . . . . . . . . . . . . . . . . . Parts Scanalyzed 1 | . . 1 . . . . . . . . . . . . . . . . . . . Part Schematics Acquired 1 | . . 1 . . . . . . . . . . . . . . . . . . . Parts Damaged . | . . . . . . . . . . . . . . . . . . . . . . Bothacking | -11 -10 -9 -9 -9 -8 -8 -8 -8 -8 -7 -7 -7 -6 -6 -5 -5 -5 -5 -4 -4 -4 ------------ Run | Yrd Mat Mat Min Exi Min Mat Gar Mat Gar Fac Was Fac Fac Gar Fac Upp Upp War Pro Fac Gar Used RIF Installer 4 | . . . . . . . 1 . 1 . . . . 1 . . . . . . 1 Command Fork 1 | . . . . . . . . . 1 . . . . . . . . . . . . Threat Obfuscator 1 | . . . . . . . . . . . . . . 1 . . . . . . . Robot Detection 1 | . . . . . . . . . . . . . . . . . . . . . 1 Robots Hacked 52 | . . . . . . 1 6 4 12 2 . . . 4 10 1 3 . . 2 7 Non-combat 6 | . . . . . . 1 . 1 . 2 . . . . 1 . . . . 1 . Combat 46 | . . . . . . . 6 3 12 . . . . 4 9 1 3 . . 1 7 Robot Hacks Applied 52 | . . . . . . 1 6 4 12 2 . . . 4 10 1 3 . . 2 7 no_distress 1 | . . . . . . 1 . . . . . . . . . . . . . . . start_evac 1 | . . . . . . . . 1 . . . . . . . . . . . . . find_chute 1 | . . . . . . . . . . 1 . . . . . . . . . . . hold_bot 1 | . . . . . . . . . . . . . . . 1 . . . . . . find_fabricator 1 | . . . . . . . . . . . . . . . . . . . . 1 . scatter_targeting 1 | . . . . . . . . . . . . . . . . . . . . . 1 amplify_resonance 1 | . . . . . . . . . . . . . . . . . . . . 1 . disable_weapons 2 | . . . . . . . 1 . 1 . . . . . . . . . . . . overwrite_iff 13 | . . . . . . . . . 3 . . . . 2 . . 3 . . . 5 formatsys_low 1 | . . . . . . . . . . 1 . . . . . . . . . . . formatsys_high 29 | . . . . . . . 5 3 8 . . . . 2 9 1 . . . . 1 Relay Couplers Released 47 | . . . . . . . 11 . 19 . . . . 13 . . . . . . 4 Machine Destruction 40 | . . . . . . . 8 . 15 . . . . 13 . . . . . . 4 Programmers 7 | . . . . . . . 3 . 4 . . . . . . . . . . . . Attached 28 | . . . . . . . 5 2 6 1 . . . 5 4 . 2 . . . 3 Fabnet Peak Effective % . | . . . . . . . . . . . . . . . . . . . . . . Robots Rewired 7 | . . . . . . . 3 . 2 . . . . . . . 2 . . . . Allies Hacked 2 | . . . . . . . 1 . . . . . . . 1 . . . . . . Hacks Repelled . | . . . . . . . . . . . . . . . . . . . . . . Allies | -11 -10 -9 -9 -9 -8 -8 -8 -8 -8 -7 -7 -7 -6 -6 -5 -5 -5 -5 -4 -4 -4 -------- Run | Yrd Mat Mat Min Exi Min Mat Gar Mat Gar Fac Was Fac Fac Gar Fac Upp Upp War Pro Fac Gar Total Allies 65 | . 1 . . . . . 8 3 14 2 1 . . 4 14 1 7 . . . 10 Largest Group 10 | . 1 . . . . . 4 2 3 1 2 . . 2 9 8 10 8 2 . 4 Highest-Rated Group 305 | . 10 . . . . . 82 31 61 26 57 . . 64 226 247 305 277 98 . 146 Highest-Rated Ally 110 | . 10 . . . . . 31 16 25 26 31 . . 32 49 49 49 49 49 . 110 Total Orders 13 | . 2 . . . . . 2 . . . . . . . 6 . 3 . . . . STAY 3 | . 1 . . . . . 1 . . . . . . . 1 . . . . . . FOLLOW 4 | . 1 . . . . . 1 . . . . . . . 1 . 1 . . . . AID 4 | . . . . . . . . . . . . . . . 2 . 2 . . . . EXPLORE 2 | . . . . . . . . . . . . . . . 2 . . . . . . Ally Attacks 300 | . . . . . . . 52 15 40 5 16 . . 15 46 1 74 . 1 . 35 Total Damage 5028 | . . . . . . . 737 241 580 80 211 . . 582 619 . 1623 . . . 355 Kills 38 | . . . . . . . 3 3 6 1 2 . . 2 6 . 10 . . . 5 Allies Corrupted 5 | . . . . . . . 1 . 1 . 1 . . . . . . 2 . . . Allies Melted 1 | . . . . . . . . . 1 . . . . . . . . . . . . Intel | -11 -10 -9 -9 -9 -8 -8 -8 -8 -8 -7 -7 -7 -6 -6 -5 -5 -5 -5 -4 -4 -4 ------- Run | Yrd Mat Mat Min Exi Min Mat Gar Mat Gar Fac Was Fac Fac Gar Fac Upp Upp War Pro Fac Gar Active Infowar (turns) 7139 | . 309 2366 574 925 723 1398 844 . . . . . . . . . . . . . . Optics 312 | . 309 3 . . . . . . . . . . . . . . . . . . . Machine Analysis 6827 | . . 2363 574 925 723 1398 844 . . . . . . . . . . . . . . Robot Analysis Total 2 | . 1 . . . . 1 . . . . . . . . . . . . . . . Derelict Logs Recovered 1 | . . . . . . . . . . . . . . . . . 1 . . . . Drone Launches 2 | . . . . . . . . . . . . . . . 2 . . . . . . Drone Recoveries 2 | . . . . . . . . . . . . . . . 2 . . . . . . Exploration | -11 -10 -9 -9 -9 -8 -8 -8 -8 -8 -7 -7 -7 -6 -6 -5 -5 -5 -5 -4 -4 -4 ------------- Run | Yrd Mat Mat Min Exi Min Mat Gar Mat Gar Fac Was Fac Fac Gar Fac Upp Upp War Pro Fac Gar Turns Passed 19674 | 175 1237 2658 574 925 723 1398 1704 774 1964 1052 443 391 157 1772 1207 514 410 89 611 449 447 Spaces Moved 8291 | 110 688 981 215 368 267 549 688 284 860 449 182 177 72 620 636 336 184 48 243 160 174 Core 14 | 13 . . . . . . . . . . . . . 1 . . . . . . . Treads 7913 | 97 414 892 215 368 267 549 688 284 860 449 182 177 72 618 636 336 184 48 243 160 174 Legs 1 | . . . . . . . . . . . . . . 1 . . . . . . . Wheels 363 | . 274 89 . . . . . . . . . . . . . . . . . . . Hover . | . . . . . . . . . . . . . . . . . . . . . . Flight . | . . . . . . . . . . . . . . . . . . . . . . Fastest Speed 50 | 50 110 95 250 250 250 203 203 200 200 200 200 220 220 145 145 145 145 145 145 150 161 Average Speed 197 | 147 146 212 250 250 250 218 203 202 200 200 216 220 220 231 145 145 145 145 195 175 175 Slowest Speed 1400 | 160 240 250 250 250 250 325 203 245 200 200 220 220 220 1400 145 145 145 145 225 270 270 Overloaded Moves . | . . . . . . . . . . . . . . . . . . . . . . Propulsion Burnouts . | . . . . . . . . . . . . . . . . . . . . . . Robots Hopped . | . . . . . . . . . . . . . . . . . . . . . . Potential Cave-ins . | . . . . . . . . . . . . . . . . . . . . . . Cave-ins Triggered . | . . . . . . . . . . . . . . . . . . . . . . Exploration Rate (%) 44 | 5 76 83 44 76 60 44 82 31 88 15 84 5 3 82 15 64 40 8 44 7 25 Regions Visited 21 Branch Regions 7 Pre-discovered Areas 1 | . . . 1 . . . . . . . . . . . . . . . . . . Known Exits Taken 4 | . . . . . . 1 . 1 . . . . 1 . . . . . . 1 . Unknown Exits Taken 12 | 1 1 1 1 1 1 . . . . . . 1 . . 1 1 1 1 1 . . Scrap Searched 3 | . . . . . 1 . . . . . . . . . . 1 1 . . . . Spaces Dug 3 | . . . . . . . 1 . . . . . . . . . . . . 2 . Terrain Destroyed 421 | . 23 13 . . 20 3 17 1 14 . 171 . . 120 . . 2 . 25 2 10 Melee 3 | . . . . . . . 1 . . . . . . . . . . . . 2 . Projectile 14 | . . . . . . . . 1 . . . . . 3 . . 2 . 5 . 3 AOE 404 | . 23 13 . . 20 3 16 . 14 . 171 . . 117 . . . . 20 . 7 Terrain Rammed . | . . . . . . . . . . . . . . . . . . . . . . Walls Destroyed . | . . . . . . . . . . . . . . . . . . . . . . Machines Disabled . | . . . . . . . . . . . . . . . . . . . . . . Actions | -11 -10 -9 -9 -9 -8 -8 -8 -8 -8 -7 -7 -7 -6 -6 -5 -5 -5 -5 -4 -4 -4 --------- Run | Yrd Mat Mat Min Exi Min Mat Gar Mat Gar Fac Was Fac Fac Gar Fac Upp Upp War Pro Fac Gar Total 10495 | 123 823 1323 244 375 296 662 851 396 1028 560 207 179 71 815 905 362 310 67 316 307 275 Wait 970 | . 51 146 24 . 4 34 9 33 12 73 2 . . 25 229 25 105 19 30 121 28 Move 8268 | 109 687 980 214 367 266 548 686 283 858 449 181 176 71 618 635 335 183 47 242 159 174 Hop . | . . . . . . . . . . . . . . . . . . . . . . Pick Up 152 | 8 15 25 . 1 2 10 18 7 17 4 1 . . 20 2 . 2 . 3 1 16 Fast Attach 56 | . 3 8 . 2 . 7 2 10 1 2 2 2 . 8 5 . . . . . 4 Attach 94 | 6 4 4 . 1 1 5 9 4 8 2 . . . 21 6 . 2 . 2 6 13 Detach 11 | . . . . 1 . . . . . . 1 . . 3 2 . . . . . 4 Swap 115 | . 5 12 1 . 5 7 26 9 20 7 3 . . 9 2 . 1 . 3 2 3 Drop 86 | . 1 20 . 3 1 11 11 5 11 2 6 1 . 10 1 . . . . 1 2 Fire 569 | . 51 118 . . 14 38 62 38 56 20 11 . . 59 17 2 12 . 32 8 31 Melee 83 | . . . 4 . 3 2 17 3 5 . . . . 38 2 . . . . 9 . Ram . | . . . . . . . . . . . . . . . . . . . . . . Kick . | . . . . . . . . . . . . . . . . . . . . . . Crush 20 | . 6 8 1 . . . . 2 . . . . . . 3 . . . . . . Escape Stasis 14 | . . . . . . . 8 . 4 . . . . 2 . . . . . . . Rewire 55 | . . . . . . . 3 2 36 1 . . . 2 1 . 5 1 4 . . Trap . | . . . . . . . . . . . . . . . . . . . . . . Miscellaneous 2 | . . 2 . . . . . . . . . . . . . . . . . . . Route ------- -11/Scrapyard -10/Materials (discovered 5 exits: *Mat x2 / [*Min x2] / [*Sub]) -9/Materials (discovered 6 exits: *Mat x2 / [*Min x2] / [*Sto x2]) -9/Mines -9/Exiles -8/Mines -8/Materials (discovered 3 exits: *Fac x2 / Gar) -8/Garrison (discovered 3 exits: *Mat x3) -8/Materials -8/Garrison (discovered 4 exits: *Fac x3 / [*Mat]) -7/Factory -7/Waste -7/Factory -6/Factory -6/Garrison -5/Factory -5/Upper Caves -5/Upper Caves -5/Warlord -4/Proximity Caves -4/Factory -4/Garrison History --------- Turn | Location | Event 7 | -11/Scrapyard | Discovered new exit (range 15) 176 | -11/Scrapyard | Entered Materials 309 | -10/Materials | Build established: Mutant 466 | -10/Materials | Discovered new exit (range 8) 563 | -10/Materials | Discovered new exit (range 9) 604 | -10/Materials | Discovered new exit (range 15) 676 | -10/Materials | Derelicts attacked the area 862 | -10/Materials | Discovered new exit (range 8) 1092 | -10/Materials | Lost 3 parts (1p2w) 1105 | -10/Materials | Discovered new exit (range 20) 1413 | -10/Materials | Entered another Materials area 1413 | -9/Materials | Evolved 2 slots: Propulsion x1, Utility x1 1622 | -9/Materials | Discovered new exit (range 15) 1704 | -9/Materials | Lost 3 parts (1n2w) 1934 | -9/Materials | Build established: Scavenger-Mutant 2231 | -9/Materials | Discovered new exit (range 10) 2345 | -9/Materials | Discovered new exit (range 12) 2794 | -9/Materials | Discovered new exit (range 13) 2941 | -9/Materials | Discovered new exit (range 16) 3743 | -9/Materials | Central database locked down 3837 | -9/Materials | Discovered new exit (range 4) 4071 | -9/Materials | Entered Mines 4072 | -9/Mines | Learned location of Storage (-9) 4463 | -9/Mines | Excavation squad dispatched 4463 | -9/Mines | A large section of the Mines collapsed 4635 | -9/Mines | Deemed a non-threat by the Exiles lab entrance 4635 | -9/Mines | Discovered new exit (range 5) 4645 | -9/Mines | Entered Exiles 4706 | -9/Exiles | Met 8R-AWN 4748 | -9/Exiles | Met EX-HEX 4780 | -9/Exiles | Build established: Mutant 4876 | -9/Exiles | Met EX-DEC 4927 | -9/Exiles | Visited The Gauntlet 5537 | -9/Exiles | Discovered new exit (range 15) 5570 | -9/Exiles | Entered Mines 6250 | -8/Mines | Discovered new exit (range 10) 6293 | -8/Mines | Entered Materials 6293 | -8/Materials | Evolved 2 slots: Utility x1, Weapon x1 6664 | -8/Materials | Discovered new exit (range 16) 7247 | -8/Materials | Build established: Scavenger-Skirmisher 7555 | -8/Materials | Discovered new exit (range 16) 7689 | -8/Materials | Identified exit to Garrison 7691 | -8/Materials | Entered Garrison 7799 | -8/Garrison | Triggered checkpoint 8061 | -8/Garrison | Triggered checkpoint 8283 | -8/Garrison | Triggered checkpoint 8327 | -8/Garrison | Installed Relay Interface Framework 8355 | -8/Garrison | Garrison Relay disabled 8521 | -8/Garrison | Triggered checkpoint 8561 | -8/Garrison | Triggered checkpoint 8575 | -8/Garrison | Triggered checkpoint 8685 | -8/Garrison | Discovered new exit (range 10) 8701 | -8/Garrison | Triggered checkpoint 8759 | -8/Garrison | Triggered checkpoint 8770 | -8/Garrison | Discovered new exit (range 15) 8770 | -8/Garrison | Discovered new exit (range 53) 8770 | -8/Garrison | Discovered new exit (range 79) 8804 | -8/Garrison | Core integrity fell below 50% 8842 | -8/Garrison | Garrison Relay disabled 9299 | -8/Garrison | Triggered checkpoint 9395 | -8/Garrison | Entered Materials 9727 | -8/Materials | Build established: Bothacker-Gunner 9866 | -8/Materials | Garrison activated, responded to threat 10167 | -8/Materials | Identified exit to Garrison 10169 | -8/Materials | Entered Garrison 10347 | -8/Garrison | Triggered checkpoint 10374 | -8/Garrison | Garrison Relay disabled 10537 | -8/Garrison | Triggered checkpoint 10541 | -8/Garrison | Triggered checkpoint 10589 | -8/Garrison | Lost 4 allies 10910 | -8/Garrison | Discovered new exit (range 10) 10953 | -8/Garrison | Triggered checkpoint 11038 | -8/Garrison | Garrison Relay disabled 11241 | -8/Garrison | Discovered new exit (range 8) 11259 | -8/Garrison | Triggered checkpoint 11283 | -8/Garrison | Garrison Relay disabled 11516 | -8/Garrison | Expanded RIF knowledge: Command Fork 11549 | -8/Garrison | Discovered new exit (range 14) 11581 | -8/Garrison | Lost 4 allies 11589 | -8/Garrison | Triggered checkpoint 11607 | -8/Garrison | Discovered new exit (range 5) 11745 | -8/Garrison | Triggered checkpoint 11752 | -8/Garrison | Core integrity fell below 20% 11787 | -8/Garrison | Garrison Relay disabled 12133 | -8/Garrison | Entered Factory 12133 | -7/Factory | Accompanied by 1 ally 12133 | -7/Factory | Evolved 2 slots: Utility x2 12312 | -7/Factory | Discovered new exit (range 10) 12474 | -7/Factory | Fabricated M-13 Machinist? 13185 | -7/Factory | Manually triggered Chute Trap 13185 | -7/Factory | Sucked down chute 13185 | -7/Factory | Entered Waste 13186 | -7/Waste | Met a frightened Derelict 13190 | -7/Waste | 1 allies followed down the chute 13200 | -7/Waste | EMP discharged 13200 | -7/Waste | System corruption reached 10% 13221 | -7/Waste | Spotted C-40 Crusher 13264 | -7/Waste | Spotted C-40 Crusher 13277 | -7/Waste | Destroyed C-40 Crusher 13280 | -7/Waste | Spotted C-40 Crusher 13281 | -7/Waste | Destroyed C-40 Crusher 13300 | -7/Waste | EMP discharged 13303 | -7/Waste | Spotted C-40 Crusher 13305 | -7/Waste | Spotted C-40 Crusher 13314 | -7/Waste | Destroyed C-40 Crusher 13317 | -7/Waste | Destroyed C-40 Crusher 13384 | -7/Waste | Spotted C-40 Crusher 13388 | -7/Waste | Destroyed C-40 Crusher 13400 | -7/Waste | EMP discharged 13463 | -7/Waste | Discovered new exit (range 13) 13489 | -7/Waste | Build established: Bothacker-Mutant 13500 | -7/Waste | EMP discharged 13500 | -7/Waste | System corruption reached 30% 13600 | -7/Waste | EMP discharged 13628 | -7/Waste | Entered Factory 13997 | -7/Factory | Discovered new exit (range 10) 14019 | -7/Factory | Entered another Factory area 14019 | -6/Factory | Evolved 2 slots: Utility x2 14173 | -6/Factory | Identified exit to Garrison 14176 | -6/Factory | Entered Garrison 14258 | -6/Garrison | Expanded RIF knowledge: Threat Obfuscation 14368 | -6/Garrison | Phase Generator disabled 14472 | -6/Garrison | Triggered checkpoint 14533 | -6/Garrison | Triggered checkpoint 14604 | -6/Garrison | Lost 10 parts (1p6n1u2w) 14822 | -6/Garrison | Garrison Relay disabled 15146 | -6/Garrison | Triggered checkpoint 15169 | -6/Garrison | Core integrity fell below 50% 15181 | -6/Garrison | Triggered checkpoint 15202 | -6/Garrison | Destroyed 13 combat bots 15209 | -6/Garrison | Lost 5 parts (1p2n2w) 15232 | -6/Garrison | Triggered checkpoint 15355 | -6/Garrison | Triggered checkpoint 15380 | -6/Garrison | Garrison Relay disabled 15444 | -6/Garrison | Discovered new exit (range 15) 15444 | -6/Garrison | Spotted B-75 Beast 15582 | -6/Garrison | Spotted B-75 Beast 15619 | -6/Garrison | Core integrity fell below 20% 15638 | -6/Garrison | Destroyed B-75 Beast 15772 | -6/Garrison | Triggered checkpoint 15799 | -6/Garrison | Garrison Relay disabled 15948 | -6/Garrison | Entered Factory 15948 | -5/Factory | Evolved 2 slots: Propulsion x1, Utility x1 16334 | -5/Factory | Build established: Bothacker-Tank 16737 | -5/Factory | Fabricated M-13 Machinist? 16935 | -5/Factory | Repaired Adv. Heavy Treads 17018 | -5/Factory | Discovered new exit (range 29) 17130 | -5/Factory | Fabricated G-34 Mercenary (x3) 17155 | -5/Factory | Entered Upper Caves 17155 | -5/Upper Caves | Accompanied by 7 allies 17631 | -5/Upper Caves | Discovered new exit (range 9) 17669 | -5/Upper Caves | Entered another Upper Caves area 17669 | -5/Upper Caves | Accompanied by 8 allies 17754 | -5/Upper Caves | Attracted the attention of an 0b10 checkpoint 17917 | -5/Upper Caves | Attracted the attention of an 0b10 outpost 17958 | -5/Upper Caves | Lost 3 allies 17971 | -5/Upper Caves | Learned Factory emergency access door positions 18031 | -5/Upper Caves | Discovered new exit (range 15) 18079 | -5/Upper Caves | Entered Warlord 18079 | -5/Warlord | Accompanied by 8 allies 18114 | -5/Warlord | Lost 3 allies 18128 | -5/Warlord | Discovered new exit (range 8) 18164 | -5/Warlord | Lost 3 allies 18168 | -5/Warlord | Entered Proximity Caves 18168 | -4/Proximity Caves | Accompanied by 2 allies 18591 | -4/Proximity Caves | Discovered new exit (range 16) 18779 | -4/Proximity Caves | Entered Factory 18779 | -4/Factory | Evolved 2 slots: Utility x1, Weapon x1 18849 | -4/Factory | Spotted B-86 Titan 19019 | -4/Factory | Lost 4 parts (2n1u1w) 19227 | -4/Factory | Identified exit to Garrison 19228 | -4/Factory | Entered Garrison 19243 | -4/Garrison | Expanded RIF knowledge: Robot Detection 19338 | -4/Garrison | Triggered checkpoint 19492 | -4/Garrison | Garrison Relay disabled 19571 | -4/Garrison | Spotted B-86 Titan 19604 | -4/Garrison | Triggered checkpoint 19609 | -4/Garrison | Triggered checkpoint 19629 | -4/Garrison | Assimilated Titan 7a with formatsys_high 19640 | -4/Garrison | Triggered checkpoint 19644 | -4/Garrison | Build established: Botlord-Tank 19675 | -4/Garrison | Self-destructed Last Messages --------------- 19664_ Slug penetrates Wall. 19665_ S-27 Virus reactivates. 19665_ Slug penetrates Wall. 19665_ Hvy. Gauss Cannon destroyed. 19666_ Penetrated by Slug. 19667_ S-27 Virus reactivates. 19667_ Penetrated by Slug. 19668_ Slug penetrates Reinforced Barrier. 19668_ Slug penetrates Wall. 19668_ Penetrated by Slug. 19669_ Critical hit (Destroy). 19669_ Imp. Heavy Siege Treads destroyed. 19669_ Hvy. Missile Launcher destroyed. 19669_ Penetrated by Slug. 19670_ Hvy. Gauss Cannon destroyed. 19670_ Destroyed Imp. Phase Shifter. 19671_ Penetrated by Slug. 19673_ Slug penetrates Reinforced Barrier. 19673_ Virus 7a destroyed. 19675_ Slug penetrates Reinforced Barrier. Map ----- +----------------------------------------------------+ | ?????????????????????????????????????????????????? | | ?????????????????????????????????????????????????? | | ?????????????????????????????????????????????????? | | ?????????????????????????????????????????????????? | | ?????????????????????????????????????????????????? | | ?????????????????????????????????????????????????? | | ?????????????????????????????????????????????????? | | ?????????????????????????????????????????????????? | | ?????????????????????????????????????????????????? | | ?????????????????????????????????????????????????? | | ????????????????????????? ??????????????????????? | | ????????????????????[ ??# ##????????????????????? | | ????????????????? ? #????????????????????? | | ???????????????? ? #????????????????????? | | ????????????? ? #????????????????????? | | ?????????????# # ?# #????????????????????? | | ?????????????# =## ###??????????????????? | | ????????????? [%%[ %#??????????????????? | | ????????????% h h % = s= C#??????????????????? | | ????????????Ch h [=% C???????????????????? | | ????????????C ! [s% ????????????????????? | | ?????????????# ; =#????????????????????? | | ?????????????# ############?????????? | | ?????????????# % % #?????????? | | ?????????????# * #?????????? | | ?????????????# %@ * = #?????????? | | ?????????????# ## ###;;######## " #?????????? | | ??????????????????# ???# ; # #??#"[ #?????????? | | ??????????????????#?????# # # #??#[ #?????????? | | ????????????????????????# ## # #??# #?????????? | | ????????????????????????# #?## #??# ######??### | | ????????????????????????# #??# #??# *## #??#"" | | ????????????????????????# #### #### /##! ##### | | ????????????????????????# + = / ^^ | | ????????????????????????# " [ = ^^ | | ????????????????????????############ ########### | | ???????????????????????????????????# !#?????????? | | ???????????????????????????????????# #?????????? | | ???????????????????????????????????# #?????????? | | ?????????????????????????????####### #?????????? | | ?????????????????????????????# ## #?????????? | | ?????????????????????????????# ## #?????????? | | ?????????????????????????????# #?????????? | | ?????????????????????????????# #?????????? | | ?????????????????????????????# ## #?????????? | | ?????????????????????????????# ## #?????????? | | ?????????????????????????????#[ ## #?????????? | | ?????????????????????????????####### #?????????? | | ???????????????????????????????????# #?????????? | | ???????????????????????????????????# #?????????? | +----------------------------------------------------+ Best States ------------- Heat Dissipation 43 Energy Generation 21 Energy Capacity 325 Matter Stores 300 Matter Capacity 300 Sight Range 21 Terrain Scan Density 10 EM Shielding 2 Corruption Block 15 Armor Coverage 800 Resistance: TH 10 Resistance: EM 15 Evasion (%) 50 Recoil Reduction 4 Salvage Targeting 1 Offensive Hacking 10 Defensive Hacking 10 Relay Coupler Types 6 Relay Coupler Value 97 Authchip Count 3 Item Schematics ----------------- Hacking Suite | -9/Materials | Scanalyzed Missile Launcher | -8/Materials | Hacked Robot Schematics ------------------ G-34 Mercenary | -10/Materials | Hacked M-13 Machinist | -9/Materials | Hacked Fabricated ------------ M-13 Machinist | x1 | -7/Factory M-13 Machinist | x1 | -5/Factory | Authchip G-34 Mercenary | x3 | -5/Factory Repaired ---------- Adv. Heavy Treads | 50% | -5/Factory Studied --------- Hvy. Assault Rifle | -9/Materials | Hacked Assault Rifle | -8/Materials | Hacked Lgt. Treads | -8/Materials | Hacked Arm. Treads | -8/Materials | Hacked Alien Tech Used ----------------- None Achievements -------------- Survival Of The Most Covered Challenges ------------ None Game ------ Seed BeamGuidanceHammer Manual? 0 Play Time 02:00:13 Cumulative 299.1 hours Start 2026.09.20 @ 13:02:22 End 2026.09.20 @ 15:14:57 Sessions 1 Manual Loads 0 Difficulty Rogue Special Mode None Game No. 318 Rogue 318 Adventurer 0 Explorer 0 Win Type - Total 3 Types 3/0/0/0/0/0/0/0/0/0 Lore% 33 Gallery% 58 Achievement% 42 Wizard Run 0 Options --------- Layout 1 ASCII 0 Keyboard 0 Movement Numpad Keybinds 0 Fullscreen 2 Font 24/Smallcaps Map View 50x35 Zoom Use 0% Tactical HUD 1 Map Filters NONE Filters NONE Steam 1 RUN: f59b13ed-992f-4bbe-bdd3-39ead15a0f2c